[Event "FIDE World Rapid-ch Open 2018"]
[White "Sanal, Vahap"]
[Black "Jumabayev, Rinat"]
[Site "St. Petersburg"]
[Round "14.58"]
[Annotator "ChessBase"]
[Result "0-1"]
[Date "2018.12.28"]
[WhiteElo "2490"]
[BlackElo "2602"]
[PlyCount "192"]
[TimeControl "900+10"]

1. e4 {[%emt 0:0:0]} e6 {[%emt 0:0:0]} 2. d4 {[%emt 0:0:0]} d5 {[%emt 0:0:0]} 3. Nd2 {[%emt 0:0:0]} c5 {[%emt 0:0:0]} 4. exd5 {[%emt 0:0:4]} Qxd5 {[%emt 0:0:0]} 5. Ngf3 {[%emt 0:0:2]} cxd4 {[%emt 0:0:1]} 6. Bc4 {[%emt 0:0:5]
} Qd7 {[%emt 0:0:1]} 7. 0-0 {[%emt 0:0:14]} a6 {[%emt 0:0:9]
} 8. a4 {[%emt 0:0:5]} Nc6 {[%emt 0:0:21]} 9. Qe2 {[%emt 0:0:24]} Nf6 {[%emt 0:0:23]
} 10. Nb3 {[%emt 0:0:7]} Bd6 {[%emt 0:0:38]} 11. Rd1 {[%emt 0:0:0]} Qc7 {[%emt 0:2:57]} 12. Nbxd4 {[%emt 0:0:11]} Nxd4 {[%emt 0:0:19]} 13. Rxd4 {[%emt 0:0:4]} Bd7 {[%emt 0:1:11]} 14. Bg5 {[%emt 0:2:2]} Bc6 {[%emt 0:2:41]
} 15. Bxe6 {[%emt 0:2:3]} Bxf3 {[%emt 0:0:18]} 16. Qxf3 {[%emt 0:0:19]
} fxe6 {[%emt 0:0:28]} 17. Bxf6 {[%emt 0:0:44]} 0-0 {[%emt 0:0:0]} 18. Rg4 {[%emt 0:1:12]} Bxh2+ {[%emt 0:0:21]} 19. Kh1 {[%emt 0:0:13]
} Be5 {[%emt 0:0:36]} 20. Bxe5 {[%emt 0:1:38]} Qxe5 {[%emt 0:0:2]} 21. Qg3 {[%emt 0:1:3]} Qxb2 {[%emt 0:1:25]} 22. Re1 {[%emt 0:0:3]} Rae8 {[%emt 0:0:0]} 23. c3 {[%emt 0:2:1]} Re7 {[%emt 0:0:11]} 24. Kg1 {[%emt 0:0:9]} Qd2 {[%emt 0:0:12]} 25. Rge4 {[%emt 0:0:4]} Rc8 {[%emt 0:2:6]} 26. R1e3 {[%emt 0:1:47]
} Qd1+ {[%emt 0:0:12]} 27. Re1 {[%emt 0:0:4]} Qd7 {[%emt 0:0:0]} 28. R1e3 {[%emt 0:1:0]} h6 {[%emt 0:1:37]} 29. Qg4 {[%emt 0:0:15]} Rc6 {[%emt 0:0:47]} 30. Re5 {[%emt 0:0:16]} Rd6 {[%emt 0:0:7]} 31. a5 {[%emt 0:0:0]} Rd1+ {[%emt 0:0:37]} 32. Kh2 {[%emt 0:0:2]} Rd5 {[%emt 0:0:13]} 33. g3 {[%emt 0:0:21]} Rxe5 {[%emt 0:0:7]} 34. Rxe5 {[%emt 0:0:1]} Rf7 {[%emt 0:0:15]
} 35. Qe2 {[%emt 0:0:7]} Qc7 {[%emt 0:0:23]} 36. Rxe6 {[%emt 0:1:37]
} Qxa5 {[%emt 0:0:2]} 37. c4 {[%emt 0:0:15]} Qf5 {[%emt 0:0:0]} 38. Kg1 {[%emt 0:0:6]} Kh7 {[%emt 0:0:10]} 39. Re5 {[%emt 0:0:5]} Qb1+ {[%emt 0:0:3]} 40. Kg2 {[%emt 0:0:2]} Qb6 {[%emt 0:0:5]} 41. c5 {[%emt 0:0:27]
} Qc6+ {[%emt 0:0:2]} 42. Kg1 {[%emt 0:0:2]} Qg6 {[%emt 0:0:0]} 43. Re6 {[%emt 0:0:14]} Qb1+ {[%emt 0:0:1]} 44. Kg2 {[%emt 0:0:2]} a5 {[%emt 0:0:5]} 45. Qc4 {[%emt 0:0:53]} Qf5 {[%emt 0:0:8]} 46. f4 {[%emt 0:0:0]} Rd7 {[%emt 0:0:13]} 47. Re5 {[%emt 0:0:45]} Qb1 {[%emt 0:0:25]} 48. Re2 {[%emt 0:0:52]} Rd1 {[%emt 0:0:5]} 49. Qe4+ {[%emt 0:0:26]} Qxe4+ {[%emt 0:0:2]
} 50. Rxe4 {[%emt 0:0:1]} Rc1 {[%emt 0:0:8]} 51. Re7 {[%emt 0:0:6]
} Rb1 {[%emt 0:0:2]} 52. f5 {[%emt 0:0:10]} Kg8 {[%emt 0:0:0]} 53. Rc7 {[%emt 0:0:8]} Rb5 {[%emt 0:0:17]} 54. Kf3 {[%emt 0:0:21]} a4 {[%emt 0:0:0]} 55. Ke4 {[%emt 0:0:13]} a3 {[%emt 0:0:3]} 56. Rc8+ {[%emt 0:0:3]
} Kf7 {[%emt 0:0:2]} 57. Ra8 {[%emt 0:0:2]} Rb3 {[%emt 0:0:0]} 58. Ke5 {[%emt 0:0:12]} Re3+ {[%emt 0:0:37]} 59. Kf4 {[%emt 0:0:13]} Rc3 {[%emt 0:0:6]} 60. Ra7 {[%emt 0:0:15]} Kf6 {[%emt 0:0:1]} 61. g4 {[%emt 0:0:13]
} Rxc5 {[%emt 0:0:43]} 62. Rxa3 {[%emt 0:0:4]} Rc4+ {[%emt 0:0:0]} 63. Kf3 {[%emt 0:0:6]} Kg5 {[%emt 0:0:2]} 64. Ra7 {[%emt 0:0:27]} Rf4+ {[%emt 0:0:9]} 65. Ke3 {[%emt 0:0:1]} Rb4 {[%emt 0:0:1]} 66. Kf3 {[%emt 0:0:5]
} Rb3+ {[%emt 0:0:8]} 67. Ke4 {[%emt 0:0:1]} Kxg4 {[%emt 0:0:0]} 68. Ra4 {[%emt 0:0:1]} Kg5 {[%emt 0:0:5]} 69. Ra1 {[%emt 0:0:14]} Kf6 {[%emt 0:0:13]} 70. Rg1 {[%emt 0:0:18]} Rb4+ {[%emt 0:0:18]} 71. Ke3 {[%emt 0:0:1]
} h5 {[%emt 0:0:27]} 72. Rg6+ {[%emt 0:0:2]} Kxf5 {[%emt 0:0:0]} 73. Rxg7 {[%emt 0:0:1]} h4 {[%emt 0:0:12]} 74. Rg8 {[%emt 0:0:11]} Rb3+ {[%emt 0:0:7]} 75. Kf2 {[%emt 0:0:12]} h3 {[%emt 0:0:4]} 76. Rf8+ {[%emt 0:0:2]
} Ke4 {[%emt 0:0:4]} 77. Rh8 {[%emt 0:0:20]} b5 {[%emt 0:0:0]} 78. Rh4+ {[%emt 0:0:4]} Kd5 {[%emt 0:0:1]} 79. Rh5+ {[%emt 0:0:6]} Kc6 {[%emt 0:0:1]} 80. Ke2 {[%emt 0:0:15]} Kb6 {[%emt 0:0:13]} 81. Kd2 {[%emt 0:0:2]
} Ka5 {[%emt 0:0:1]} 82. Kc2 {[%emt 0:0:4]} Rg3 {[%emt 0:0:0]} 83. Rh4 {[%emt 0:0:6]} b4 {[%emt 0:0:4]} 84. Rh8 {[%emt 0:0:6]} Ka4 {[%emt 0:0:4]} 85. Ra8+ {[%emt 0:0:13]} Kb5 {[%emt 0:0:1]} 86. Rh8 {[%emt 0:0:2]
} b3+ {[%emt 0:0:10]} 87. Kb2 {[%emt 0:0:1]} Kc5 {[%emt 0:0:0]} 88. Rd8 {[%emt 0:0:30]} Kc4 {[%emt 0:0:2]} 89. Rc8+ {[%emt 0:0:7]} Kd4 {[%emt 0:0:3]} 90. Re8 {[%emt 0:0:2]} Re3 {[%emt 0:0:6]} 91. Rh8 {[%emt 0:0:18]
} Ke4 {[%emt 0:0:4]} 92. Kc1 {[%emt 0:0:2]} Rd3 {[%emt 0:0:0]} 93. Rf8 {[%emt 0:0:26]} Rf3 {[%emt 0:0:1]} 94. Rh8 {[%emt 0:0:6]} Ke3 {[%emt 0:0:7]} 95. Rh7 {[%emt 0:0:41]} Kf2 {[%emt 0:0:6]} 96. Kd2 {[%emt 0:0:8]
} Kg2 {[%emt 0:0:4]} 0-1

[Event "FIDE World Rapid-ch Open 2018"]
[White "Vishnu Prasanna. V"]
[Black "Bindrich, Falko"]
[Site "St. Petersburg"]
[Round "14.59"]
[Annotator "ChessBase"]
[Result "0-1"]
[Date "2018.12.28"]
[WhiteElo "2518"]
[BlackElo "2606"]
[PlyCount "56"]
[TimeControl "900+10"]

1. e4 {[%emt 0:0:0]} e5 {[%emt 0:0:0]} 2. Nf3 {[%emt 0:0:0]} Nf6 {[%emt 0:0:0]
} 3. Nxe5 {[%emt 0:0:2]} d6 {[%emt 0:0:0]} 4. Nc4 {[%emt 0:0:0]} Nxe4 {[%emt 0:0:0]} 5. Qe2 {[%emt 0:0:2]} Qe7 {[%emt 0:0:3]} 6. Ne3 {[%emt 0:0:3]} Nf6 {[%emt 0:0:13]} 7. b3 {[%emt 0:0:50]} Nc6 {[%emt 0:0:0]} 8. Bb2 {[%emt 0:0:2]} Be6 {[%emt 0:0:1]} 9. g3 {[%emt 0:0:28]} 0-0-0 {[%emt 0:0:12]} 10. Bg2 {[%emt 0:0:6]} d5 {[%emt 0:0:2]} 11. d4 {[%emt 0:0:23]
} g6 {[%emt 0:0:56]} 12. Nd2 {[%emt 0:1:33]} Bh6 {[%emt 0:0:0]} 13. 0-0 {[%emt 0:0:22]} Rhe8 {[%emt 0:1:9]} 14. Rfe1 {[%emt 0:1:11]} Qd7 {[%emt 0:0:7]} 15. Qf3 {[%emt 0:1:33]} Ng4 {[%emt 0:0:30]} 16. a3 {[%emt 0:2:49]
} Nxe3 {[%emt 0:0:48]} 17. fxe3 {[%emt 0:0:3]} Bg4 {[%emt 0:0:0]} 18. Qf2 {[%emt 0:0:4]} Bh3 {[%emt 0:0:21]} 19. Bh1 {[%emt 0:0:35]} Qf5 {[%emt 0:2:7]} 20. c4 {[%emt 0:2:36]} Qd3 {[%emt 0:0:57]} 21. cxd5 {[%emt 0:1:38]
} Bxe3 {[%emt 0:0:1]} 22. Rxe3 {[%emt 0:0:2]} Rxe3 {[%emt 0:0:0]} 23. Nc4 {[%emt 0:1:23]} Re2 {[%emt 0:1:20]} 24. dxc6 {[%emt 0:1:1]} Rxf2 {[%emt 0:0:31]} 25. cxb7+ {[%emt 0:0:2]} Kb8 {[%emt 0:0:2]} 26. Kxf2 {[%emt 0:0:2]} Re8 {[%emt 0:0:41]} 27. Rc1 {[%emt 0:1:48]} Re2+ {[%emt 0:0:0]} 28. Kg1 {[%emt 0:0:1]} Rxb2 {[%emt 0:0:13]} 0-1

[Event "FIDE World Rapid-ch Open 2018"]
[White "Bosiocic, Marin"]
[Black "AL-Sayed, Mohammed"]
[Site "St. Petersburg"]
[Round "14.60"]
[Annotator "ChessBase"]
[Result "1/2-1/2"]
[Date "2018.12.28"]
[WhiteElo "2599"]
[BlackElo "2484"]
[PlyCount "61"]
[TimeControl "900+10"]

1. d4 {[%emt 0:0:0]} d5 {[%emt 0:0:0]} 2. c4 {[%emt 0:0:0]} c6 {[%emt 0:0:0]} 3. Nf3 {[%emt 0:0:0]} Nf6 {[%emt 0:0:0]} 4. e3 {[%emt 0:0:0]} Bf5 {[%emt 0:0:0]} 5. Nc3 {[%emt 0:0:0]} e6 {[%emt 0:0:0]} 6. Nh4 {[%emt 0:0:0]} Bg6 {[%emt 0:0:1]} 7. Nxg6 {[%emt 0:0:4]} hxg6 {[%emt 0:0:2]} 8. Bd2 {[%emt 0:0:1]} Qc7 {[%emt 0:0:11]} 9. h3 {[%emt 0:0:4]} Nbd7 {[%emt 0:0:0]} 10. cxd5 {[%emt 0:0:2]} exd5 {[%emt 0:0:58]} 11. Bd3 {[%emt 0:0:3]
} Be7 {[%emt 0:0:15]} 12. Qf3 {[%emt 0:0:25]} Nb6 {[%emt 0:0:34]} 13. 0-0-0 {[%emt 0:0:9]} 0-0-0 {[%emt 0:2:18]} 14. Kb1 {[%emt 0:0:3]} Kb8 {[%emt 0:0:0]} 15. Rc1 {[%emt 0:0:8]} Qd7 {[%emt 0:0:36]} 16. g4 {[%emt 0:0:7]} Qe6 {[%emt 0:0:2]} 17. Rhe1 {[%emt 0:1:1]} Nc4 {[%emt 0:0:32]} 18. Bxc4 {[%emt 0:0:50]
} dxc4 {[%emt 0:0:1]} 19. Rcd1 {[%emt 0:0:21]} Ka8 {[%emt 0:0:0]} 20. Bc1 {[%emt 0:1:36]} Nd5 {[%emt 0:1:14]} 21. e4 {[%emt 0:0:36]} Nb4 {[%emt 0:0:1]} 22. d5 {[%emt 0:0:17]} Qf6 {[%emt 0:0:1]} 23. Qxf6 {[%emt 0:1:1]
} gxf6 {[%emt 0:0:1]} 24. dxc6 {[%emt 0:0:18]} bxc6 {[%emt 0:0:0]} 25. Rh1 {[%emt 0:0:56]} Nd3 {[%emt 0:0:36]} 26. Be3 {[%emt 0:0:31]} Rb8 {[%emt 0:0:55]} 27. b3 {[%emt 0:1:12]} Rhd8 {[%emt 0:0:4]} 28. Kc2 {[%emt 0:0:54]
} Nb4+ {[%emt 0:2:22]} 29. Kb1 {[%emt 0:0:25]} Nd3 {[%emt 0:0:0]} 30. Kc2 {[%emt 0:0:0]} Nb4+ {[%emt 0:0:56]} 31. Kb1 {[%emt 0:0:1]} 1/2-1/2

[Event "FIDE World Rapid-ch Open 2018"]
[White "Najer, Evgeniy"]
[Black "Sokolin, Leonid"]
[Site "St. Petersburg"]
[Round "14.62"]
[Annotator "ChessBase"]
[Result "1-0"]
[Date "2018.12.28"]
[WhiteElo "2670"]
[BlackElo "2508"]
[PlyCount "65"]
[TimeControl "900+10"]

1. e4 {[%emt 0:2:3]} e6 {[%emt 0:0:0]} 2. d4 {[%emt 0:0:2]} d5 {[%emt 0:0:0]} 3. Nc3 {[%emt 0:0:1]} Nf6 {[%emt 0:0:6]} 4. e5 {[%emt 0:0:4]} Nfd7 {[%emt 0:0:1]} 5. f4 {[%emt 0:0:1]} c5 {[%emt 0:0:1]} 6. Nf3 {[%emt 0:0:2]
} Nc6 {[%emt 0:0:1]} 7. Be3 {[%emt 0:0:1]} Be7 {[%emt 0:0:0]} 8. dxc5 {[%emt 0:0:24]} Nxc5 {[%emt 0:0:14]} 9. Qd2 {[%emt 0:0:14]} a6 {[%emt 0:0:22]} 10. Qf2 {[%emt 0:1:9]} Qa5 {[%emt 0:0:27]} 11. Bd3 {[%emt 0:1:58]
} Nb4 {[%emt 0:1:40]} 12. Qe2 {[%emt 0:0:44]} b5 {[%emt 0:0:0]} 13. 0-0 {[%emt 0:3:20]} Nbxd3 {[%emt 0:0:7]} 14. cxd3 {[%emt 0:0:2]} b4 {[%emt 0:0:3]} 15. Nd1 {[%emt 0:0:25]} Bd7 {[%emt 0:4:7]} 16. Nf2 {[%emt 0:0:9]
} 0-0 {[%emt 0:0:17]} 17. Nd4 {[%emt 0:0:49]} Rfc8 {[%emt 0:0:0]} 18. Ng4 {[%emt 0:0:12]} h5 {[%emt 0:0:40]} 19. Nf6+ {[%emt 0:0:13]} gxf6 {[%emt 0:0:42]} 20. Qxh5 {[%emt 0:0:2]} Qd8 {[%emt 0:4:40]} 21. Rf3 {[%emt 0:0:19]
} Qf8 {[%emt 0:0:1]} 22. Rg3+ {[%emt 0:0:12]} Qg7 {[%emt 0:0:0]} 23. Rxg7+ {[%emt 0:1:19]} Kxg7 {[%emt 0:0:1]} 24. f5 {[%emt 0:0:2]} Rh8 {[%emt 0:0:14]} 25. Qg4+ Kf8 26. fxe6 {[%emt 0:0:11]} Nxe6 {[%emt 0:0:0]} 27. Rf1 {[%emt 0:0:49]} Ke8 {[%emt 0:1:54]} 28. exf6 Bd6 29. h3 {[%emt 0:1:3]
} Nxd4 {[%emt 0:1:20]} 30. Qxd4 {[%emt 0:0:19]} Be6 {[%emt 0:0:0]} 31. Qb6 {[%emt 0:0:16]} Rd8 {[%emt 0:0:21]} 32. Qc6+ {[%emt 0:0:2]} Kf8 {[%emt 0:0:41]} 33. Bb6 {[%emt 0:0:4]} 1-0

[Event "FIDE World Rapid-ch Open 2018"]
[White "Drygalov, Andrey"]
[Black "Khismatullin, Denis"]
[Site "St. Petersburg"]
[Round "14.63"]
[Annotator "ChessBase"]
[Result "1-0"]
[Date "2018.12.28"]
[WhiteElo "2481"]
[BlackElo "2621"]
[PlyCount "93"]
[TimeControl "900+10"]

1. e4 {[%emt 0:0:0]} c5 {[%emt 0:0:0]} 2. Nf3 {[%emt 0:0:0]} d6 {[%emt 0:0:0]} 3. Bb5+ {[%emt 0:0:0]} Nd7 {[%emt 0:0:0]} 4. 0-0 {[%emt 0:0:8]} a6 {[%emt 0:0:1]} 5. Bd3 {[%emt 0:0:2]} Ngf6 {[%emt 0:0:41]} 6. Re1 {[%emt 0:0:1]
} e6 {[%emt 0:1:5]} 7. c3 {[%emt 0:0:20]} b5 {[%emt 0:0:5]} 8. a4 {[%emt 0:0:16]} c4 {[%emt 0:1:53]} 9. Bc2 {[%emt 0:0:2]} Rb8 {[%emt 0:0:9]
} 10. axb5 {[%emt 0:0:46]} axb5 {[%emt 0:0:2]} 11. d4 {[%emt 0:0:44]
} cxd3 {[%emt 0:0:16]} 12. Qxd3 {[%emt 0:0:37]} Bb7 {[%emt 0:0:0]} 13. b4 {[%emt 0:2:1]} Be7 {[%emt 0:0:4]} 14. Bf4 {[%emt 0:0:45]} e5 {[%emt 0:0:20]} 15. Bg3 {[%emt 0:0:26]} 0-0 {[%emt 0:0:14]} 16. Nbd2 {[%emt 0:0:4]
} Qc7 {[%emt 0:0:21]} 17. Bb3 {[%emt 0:0:11]} Bc6 {[%emt 0:0:0]} 18. Bh4 {[%emt 0:3:38]} Nb6 {[%emt 0:0:53]} 19. Bxf6 {[%emt 0:1:21]} Bxf6 {[%emt 0:0:4]} 20. Nf1 {[%emt 0:0:5]} Qb7 {[%emt 0:0:24]} 21. Ng3 {[%emt 0:1:7]
} Rbd8 {[%emt 0:1:12]} 22. Nh5 {[%emt 0:2:43]} Be7 {[%emt 0:0:0]} 23. Qe3 {[%emt 0:0:2]} Bd7 {[%emt 0:3:27]} 24. Ra5 {[%emt 0:0:34]} Rc8 {[%emt 0:0:32]} 25. h3 {[%emt 0:0:49]} Rc7 {[%emt 0:1:12]} 26. Nxe5 {[%emt 0:1:8]
} dxe5 {[%emt 0:1:37]} 27. Qg3 {[%emt 0:0:1]} g6 {[%emt 0:0:0]} 28. Qxe5 {[%emt 0:0:1]} gxh5 {[%emt 0:0:2]} 29. Qxe7 {[%emt 0:0:2]} Rc6 {[%emt 0:0:51]} 30. Rxb5 {[%emt 0:0:4]} Rg6 {[%emt 0:0:22]} 31. Rxh5 {[%emt 0:0:7]
} Rxg2+ {[%emt 0:0:58]} 32. Kh1 {[%emt 0:0:28]} Rg6 {[%emt 0:0:0]} 33. Rxh7 {[%emt 0:0:55]} Kxh7 {[%emt 0:0:18]} 34. Qxf8 {[%emt 0:0:0]} Be6 {[%emt 0:0:18]} 35. Bxe6 {[%emt 0:0:3]} fxe6 {[%emt 0:0:14]} 36. Qf3 {[%emt 0:1:7]} Nc4 {[%emt 0:0:11]} 37. Rg1 {[%emt 0:0:12]} Rh6 {[%emt 0:0:8]
} 38. Qg4 {[%emt 0:0:11]} Qf7 {[%emt 0:0:5]} 39. b5 {[%emt 0:0:0]} Ne5 {[%emt 0:0:11]} 40. Qg3 {[%emt 0:0:1]} Rg6 {[%emt 0:0:5]} 41. Qh4+ {[%emt 0:0:5]} Rh6 {[%emt 0:0:4]} 42. Qg3 {[%emt 0:0:0]} Ng6 {[%emt 0:0:11]
} 43. b6 {[%emt 0:0:35]} Nf4 {[%emt 0:0:12]} 44. b7 {[%emt 0:0:0]} Nxh3 {[%emt 0:0:23]} 45. Qg8+ {[%emt 0:0:5]} Qxg8 {[%emt 0:0:7]} 46. Rxg8 {[%emt 0:0:1]} Kxg8 {[%emt 0:0:14]} 47. b8=Q+ {[%emt 0:0:2]} 1-0

[Event "FIDE World Rapid-ch Open 2018"]
[White "Maghsoodloo, Parham"]
[Black "Kovalev, Vladislav"]
[Site "St. Petersburg"]
[Round "14.64"]
[Annotator "ChessBase"]
[Result "1-0"]
[Date "2018.12.28"]
[WhiteElo "2688"]
[BlackElo "2683"]
[PlyCount "119"]
[TimeControl "900+10"]

1. d4 {[%emt 0:0:0]} Nf6 {[%emt 0:0:0]} 2. c4 {[%emt 0:0:0]} g6 {[%emt 0:0:0]} 3. Nc3 {[%emt 0:0:1]} Bg7 {[%emt 0:0:0]} 4. e4 {[%emt 0:0:2]} d6 {[%emt 0:0:0]} 5. Nf3 {[%emt 0:0:3]} 0-0 {[%emt 0:0:0]} 6. Be2 {[%emt 0:0:0]} Na6 {[%emt 0:0:0]} 7. 0-0 {[%emt 0:0:6]} e5 {[%emt 0:0:0]} 8. Re1 {[%emt 0:0:26]} Qe8 {[%emt 0:0:3]} 9. dxe5 {[%emt 0:0:34]} dxe5 {[%emt 0:0:0]} 10. b3 {[%emt 0:0:1]} Nc5 {[%emt 0:2:35]} 11. Qc2 {[%emt 0:0:23]} c6 {[%emt 0:1:34]} 12. Ba3 {[%emt 0:0:22]} Nfd7 {[%emt 0:1:9]} 13. Nd2 {[%emt 0:0:55]
} Qe7 {[%emt 0:0:29]} 14. Bg4 {[%emt 0:0:18]} b6 {[%emt 0:0:0]} 15. Bxd7 {[%emt 0:1:18]} Qxd7 {[%emt 0:0:24]} 16. Bxc5 {[%emt 0:0:9]} bxc5 {[%emt 0:0:1]} 17. Na4 {[%emt 0:0:6]} Qe7 {[%emt 0:0:3]} 18. h3 {[%emt 0:0:34]
} f5 {[%emt 0:0:4]} 19. Rad1 {[%emt 0:0:2]} Rd8 {[%emt 0:0:0]} 20. Nf3 {[%emt 0:0:5]} Be6 {[%emt 0:0:18]} 21. Qe2 {[%emt 0:0:54]} Rac8 {[%emt 0:2:5]} 22. Qe3 {[%emt 0:2:50]} fxe4 {[%emt 0:0:5]} 23. Nd2 {[%emt 0:0:2]
} Rd3 {[%emt 0:0:16]} 24. Qe2 {[%emt 0:0:1]} Bf5 {[%emt 0:0:0]} 25. Nxe4 {[%emt 0:0:7]} Rd4 {[%emt 0:0:4]} 26. Rxd4 {[%emt 0:2:19]} cxd4 {[%emt 0:0:18]} 27. Nac5 {[%emt 0:0:20]} Rd8 {[%emt 0:0:37]} 28. Nd3 {[%emt 0:0:2]
} Qa3 {[%emt 0:0:10]} 29. g4 {[%emt 0:1:31]} Bc8 {[%emt 0:0:0]} 30. Qd2 {[%emt 0:1:34]} Qe7 {[%emt 0:0:16]} 31. Qg5 {[%emt 0:0:29]} Qf8 {[%emt 0:0:54]} 32. Kg2 {[%emt 0:0:6]} Re8 {[%emt 0:0:22]} 33. f3 {[%emt 0:0:0]} a5 {[%emt 0:1:8]} 34. Re2 {[%emt 0:0:52]} a4 {[%emt 0:0:44]} 35. Ndc5 {[%emt 0:0:47]} axb3 {[%emt 0:0:4]} 36. axb3 {[%emt 0:0:1]} Rd8 {[%emt 0:0:34]
} 37. Nd3 {[%emt 0:0:15]} Be6 {[%emt 0:0:19]} 38. Ra2 {[%emt 0:0:0]} Rb8 {[%emt 0:0:13]} 39. Ndc5 {[%emt 0:0:35]} Bc8 {[%emt 0:0:11]} 40. Ra7 {[%emt 0:0:3]} d3 {[%emt 0:0:5]} 41. Qe3 {[%emt 0:0:24]} Qd8 {[%emt 0:0:0]} 42. Qxd3 {[%emt 0:0:13]} Qxd3 43. Nxd3 {[%emt 0:0:1]} Rxb3 {[%emt 0:0:0]} 44. Ra8 {[%emt 0:0:33]} Rxd3 {[%emt 0:0:1]} 45. Rxc8+ {[%emt 0:0:0]} Bf8 {[%emt 0:0:11]} 46. Rxc6 {[%emt 0:0:6]} Bb4 {[%emt 0:0:19]} 47. Rc7 {[%emt 0:0:5]} h5 {[%emt 0:0:2]} 48. c5 {[%emt 0:0:22]} Ra3 {[%emt 0:0:0]} 49. Rb7 {[%emt 0:0:8]} Ra2+ {[%emt 0:0:2]} 50. Kf1 {[%emt 0:0:1]} Ra1+ {[%emt 0:0:17]} 51. Ke2 {[%emt 0:0:2]} Ra2+ {[%emt 0:0:2]} 52. Kd1 {[%emt 0:0:14]
} Ra1+ {[%emt 0:0:17]} 53. Kc2 {[%emt 0:0:1]} Bxc5 {[%emt 0:0:0]} 54. Nxc5 {[%emt 0:0:2]} Rh1 {[%emt 0:0:17]} 55. Nd7 {[%emt 0:0:24]} Rxh3 {[%emt 0:0:9]} 56. Nxe5 {[%emt 0:0:2]} h4 {[%emt 0:0:5]} 57. Nxg6 {[%emt 0:0:40]
} Rxf3 {[%emt 0:0:10]} 58. Nxh4 {[%emt 0:0:2]} Rf4 {[%emt 0:0:0]} 59. Nf5 {[%emt 0:0:1]} Kh8 {[%emt 0:0:4]} 60. Ne3 {[%emt 0:0:3]} 1-0

[Event "FIDE World Rapid-ch Open 2018"]
[White "Usmanov, Vasily"]
[Black "Salgado Lopez, Ivan"]
[Site "St. Petersburg"]
[Round "14.65"]
[Annotator "ChessBase"]
[Result "0-1"]
[Date "2018.12.28"]
[WhiteElo "2450"]
[BlackElo "2629"]
[PlyCount "124"]
[TimeControl "900+10"]

1. Nf3 {[%emt 0:0:0]} b6 {[%emt 0:0:0]} 2. c4 {[%emt 0:0:13]} Bb7 {[%emt 0:0:2]
} 3. Nc3 {[%emt 0:0:1]} Nf6 {[%emt 0:0:7]} 4. d4 {[%emt 0:0:0]} e6 {[%emt 0:0:3]} 5. a3 {[%emt 0:0:6]} d5 {[%emt 0:0:7]} 6. Bg5 {[%emt 0:0:7]
} Be7 {[%emt 0:0:9]} 7. Qa4+ {[%emt 0:0:7]} Qd7 {[%emt 0:0:0]} 8. Qc2 {[%emt 0:0:36]} dxc4 {[%emt 0:0:36]} 9. e3 {[%emt 0:0:37]} Bxf3 {[%emt 0:1:38]} 10. gxf3 {[%emt 0:0:4]} Qc6 {[%emt 0:0:50]} 11. Bxf6 {[%emt 0:0:51]
} Bxf6 {[%emt 0:0:11]} 12. Qe4 {[%emt 0:0:15]} 0-0 {[%emt 0:0:0]} 13. f4 {[%emt 0:1:49]} Qxe4 {[%emt 0:0:31]} 14. Nxe4 {[%emt 0:0:2]} Nd7 {[%emt 0:0:28]} 15. Bxc4 {[%emt 0:0:12]} c5 {[%emt 0:0:37]} 16. Nxf6+ {[%emt 0:0:13]
} Nxf6 {[%emt 0:0:28]} 17. dxc5 {[%emt 0:0:8]} bxc5 {[%emt 0:0:0]} 18. Rc1 {[%emt 0:0:18]} Rab8 {[%emt 0:0:17]} 19. Rc2 {[%emt 0:0:12]} Rfd8 {[%emt 0:0:4]} 20. Ke2 {[%emt 0:0:5]} Kf8 {[%emt 0:0:6]} 21. Rhc1 {[%emt 0:1:17]
} Rd6 {[%emt 0:0:13]} 22. Bd3 {[%emt 0:1:13]} Nd7 {[%emt 0:0:0]} 23. b4 {[%emt 0:0:9]} cxb4 {[%emt 0:0:21]} 24. Rc8+ {[%emt 0:0:1]} Ke7 {[%emt 0:0:56]} 25. Rxb8 {[%emt 0:0:2]} Nxb8 {[%emt 0:0:3]} 26. axb4 {[%emt 0:0:2]
} Rc6 {[%emt 0:0:21]} 27. Rg1 {[%emt 0:0:36]} g6 {[%emt 0:0:0]} 28. b5 {[%emt 0:1:21]} Rc7 {[%emt 0:0:8]} 29. Ra1 {[%emt 0:0:16]} Kd6 {[%emt 0:0:52]} 30. Kf3 {[%emt 0:0:52]} Kc5 {[%emt 0:0:43]} 31. Kg4 {[%emt 0:0:3]
} h6 {[%emt 0:0:12]} 32. h4 {[%emt 0:0:33]} Nd7 {[%emt 0:0:13]
} 33. Kf3 {[%emt 0:1:28]} h5 {[%emt 0:0:11]} 34. Ra4 {[%emt 0:1:10]} Nb6 {[%emt 0:0:21]
} 35. Ra6 {[%emt 0:0:45]} Nd5 {[%emt 0:0:21]} 36. Bf1 {[%emt 0:0:0]} Nc3 {[%emt 0:0:34]} 37. Ra3 {[%emt 0:0:3]} Kb4 {[%emt 0:0:39]} 38. Ra1 {[%emt 0:0:0]} Rb7 {[%emt 0:0:28]} 39. e4 {[%emt 0:0:53]} Nxb5 {[%emt 0:0:10]
} 40. Ke3 {[%emt 0:1:14]} Na3 {[%emt 0:2:34]} 41. Bd3 {[%emt 0:0:0]} Rc7 {[%emt 0:0:31]} 42. f5 {[%emt 0:0:2]} exf5 {[%emt 0:0:16]} 43. exf5 {[%emt 0:0:1]} gxf5 {[%emt 0:0:3]} 44. Rg1 {[%emt 0:0:43]} a5 {[%emt 0:0:4]
} 45. Rg5 {[%emt 0:0:1]} Rc5 {[%emt 0:0:7]} 46. Kd4 {[%emt 0:0:0]} a4 {[%emt 0:0:41]} 47. Rxh5 {[%emt 0:0:5]} Nb5+ {[%emt 0:0:11]} 48. Bxb5 {[%emt 0:0:5]} Rxb5 {[%emt 0:0:1]} 49. Rh8 {[%emt 0:0:29]} a3 {[%emt 0:0:18]
} 50. Ra8 {[%emt 0:0:11]} f4 {[%emt 0:0:6]} 51. f3 {[%emt 0:0:0]} Kb3 {[%emt 0:0:4]} 52. Ke4 {[%emt 0:0:35]} a2 {[%emt 0:0:8]} 53. Rxa2 {[%emt 0:0:22]} Kxa2 {[%emt 0:0:3]} 54. Kxf4 {[%emt 0:0:1]} Kb3 {[%emt 0:0:41]
} 55. Kg4 {[%emt 0:0:1]} Kc4 {[%emt 0:0:10]} 56. h5 {[%emt 0:0:0]} Kd5 {[%emt 0:0:4]} 57. h6 {[%emt 0:0:18]} Ke6 {[%emt 0:0:15]} 58. h7 {[%emt 0:0:4]} Rb8 {[%emt 0:0:4]} 59. Kg5 {[%emt 0:0:1]} Rh8 {[%emt 0:0:0]} 60. Kh6 {[%emt 0:0:1]} Kf6 {[%emt 0:0:3]} 61. f4 {[%emt 0:0:2]} Ra8 {[%emt 0:0:5]} 62. h8=Q+ {[%emt 0:0:11]} Rxh8# 0-1

[Event "FIDE World Rapid-ch Open 2018"]
[White "Frolyanov, Dmitry"]
[Black "Ghaem Maghami, Ehsan"]
[Site "St. Petersburg"]
[Round "14.66"]
[Annotator "ChessBase"]
[Result "0-1"]
[Date "2018.12.28"]
[WhiteElo "2517"]
[BlackElo "2537"]
[PlyCount "88"]
[TimeControl "900+10"]

1. e4 {[%emt 0:0:0]} c6 {[%emt 0:0:0]} 2. d4 {[%emt 0:0:0]} d5 {[%emt 0:0:0]} 3. exd5 {[%emt 0:0:0]} cxd5 {[%emt 0:0:0]} 4. c4 {[%emt 0:0:0]} Nf6 {[%emt 0:0:4]} 5. Nc3 {[%emt 0:0:0]} e6 {[%emt 0:1:43]} 6. Nf3 {[%emt 0:0:0]
} Bb4 {[%emt 0:0:1]} 7. cxd5 {[%emt 0:0:4]} Nxd5 {[%emt 0:0:0]} 8. Bd2 {[%emt 0:0:2]} Nc6 {[%emt 0:0:2]} 9. Bd3 {[%emt 0:0:3]} Nde7 {[%emt 0:0:2]} 10. 0-0 {[%emt 0:1:51]} h6 {[%emt 0:1:2]} 11. Qe2 {[%emt 0:0:0]} 0-0 {[%emt 0:0:39]} 12. Qe4 {[%emt 0:1:33]} Ng6 {[%emt 0:0:22]} 13. Rad1 {[%emt 0:0:14]} Re8 {[%emt 0:0:20]} 14. Rfe1 {[%emt 0:0:31]} Bd7 {[%emt 0:0:15]
} 15. Bc1 {[%emt 0:3:37]} Ba5 {[%emt 0:4:8]} 16. Bb1 {[%emt 0:0:0]} Nce7 {[%emt 0:0:57]} 17. Ne5 {[%emt 0:0:29]} Bc6 {[%emt 0:0:7]} 18. Nxc6 {[%emt 0:0:12]} bxc6 {[%emt 0:0:5]} 19. h4 {[%emt 0:1:9]} Nd5 {[%emt 0:1:8]
} 20. h5 {[%emt 0:0:6]} Nf8 {[%emt 0:0:6]} 21. Rd3 {[%emt 0:0:0]} Rb8 {[%emt 0:0:43]} 22. Rg3 {[%emt 0:0:37]} Bc7 {[%emt 0:1:35]} 23. Rh3 {[%emt 0:0:10]} Rb4 {[%emt 0:0:31]} 24. a3 {[%emt 0:0:34]} Nf6 {[%emt 0:0:0]} 25. Qxc6 {[%emt 0:0:29]} Rxd4 {[%emt 0:0:1]} 26. Be3 {[%emt 0:0:28]
} Rd6 {[%emt 0:0:1]} 27. Qc4 {[%emt 0:0:25]} Bb6 {[%emt 0:0:7]} 28. Ne4 {[%emt 0:0:51]
} Nxe4 {[%emt 0:1:47]} 29. Qxe4 {[%emt 0:0:2]} Rd1 {[%emt 0:0:0]} 30. Bxb6 {[%emt 0:0:4]} Rxe1+ {[%emt 0:0:4]} 31. Qxe1 {[%emt 0:0:0]} Qxb6 {[%emt 0:0:3]} 32. b4 {[%emt 0:0:16]} Nd7 {[%emt 0:0:30]} 33. Qe3 {[%emt 0:1:4]} Qb8 {[%emt 0:0:44]} 34. Bd3 {[%emt 0:0:24]} Nf6 {[%emt 0:0:0]} 35. Be2 {[%emt 0:0:6]} Nd5 {[%emt 0:0:31]} 36. Qd2 {[%emt 0:0:13]} Qe5 {[%emt 0:0:29]} 37. Rf3 {[%emt 0:0:45]} Rc8 {[%emt 0:0:11]} 38. g3 {[%emt 0:0:0]} Qa1+ {[%emt 0:0:39]} 39. Kg2 {[%emt 0:0:1]} Rc1 {[%emt 0:0:7]} 40. Rd3 {[%emt 0:0:30]} Rg1+ {[%emt 0:0:9]} 41. Kh2 {[%emt 0:0:6]} Rh1+ {[%emt 0:0:17]
} 42. Kg2 {[%emt 0:0:1]} Qg1+ {[%emt 0:0:17]} 43. Kf3 {[%emt 0:0:1]
} Rh2 {[%emt 0:0:2]} 44. Bd1 {[%emt 0:0:8]} Qg2+ {[%emt 0:0:0]} 0-1